[Event "EYCC Girls-U18 2019"]
[Site "Bratislava"]
[Date "2019.08.03"]
[Round "2.16"]
[White "Maksimovic, Masa"]
[Black "Kralova, Gabriela"]
[Result "1-0"]
[ECO "C64"]
[WhiteElo "2102"]
[BlackElo "1626"]
[Annotator "NA"]
[PlyCount "89"]
[EventDate "2019.08.02"]
[EventType "swiss"]
[EventCountry "SVK"]
[SourceTitle "playchess.com"]
[Source "ChessBase"]
[SourceQuality "1"]
[TimeControl "40/5400+30:1800+30"]

1. e4 {[%emt 0:00:00]} e5 {[%emt 0:00:00]} 2. Nf3 {[%emt 0:00:00]} Nc6 {[%emt 0:00:00]} 3. Bb5 {[%emt 0:00:00]} Bc5 {[%emt 0:00:51]} 4. O-O {[%emt 0:00:38]} Qf6 {[%emt 0:00:45]} 5. c3 {[%emt 0:06:42]} Nge7 {[%emt 0:02:15]} 6. d3 {[%emt 0:02:56]} h6 {[%emt 0:01:26]} 7. Re1 {[%emt 0:13:22]} O-O {[%emt 0:05:27]} 8. Nbd2 {[%emt 0:06:54]} a6 {[%emt 0:06:31]} 9. Bxc6 {[%emt 0:01:04]} Nxc6 {[%emt 0:02:28]} 10. Nf1 {[%emt 0:03:11]} Qg6 {[%emt 0:10:23]} 11. d4 {[%emt 0:09:13]} exd4 {[%emt 0:07:00]} 12. cxd4 {[%emt 0:00:11]} Bb4 {[%emt 0:06:49]} 13. Bd2 {[%emt 0:00:07]} Bxd2 {[%emt 0:01:07]} 14. Qxd2 {[%emt 0:00:08]} d6 {[%emt 0:03:12]} 15. d5 {[%emt 0:11:56]} Ne5 {[%emt 0:10:17]} 16. Nxe5 {[%emt 0:00:18]} dxe5 {[%emt 0:00:25]} 17. Qc3 {[%emt 0:00:43]} Qd6 {[%emt 0:07:02]} 18. Rac1 {[%emt 0:03:49]} Re8 {[%emt 0:03:25]} 19. Qxc7 {[%emt 0:00:21]} Rd8 {[%emt 0:03:58]} 20. Ne3 {[%emt 0:04:09]} b5 {[%emt 0:05:49]} 21. Rc6 {[%emt 0:04:52]} Qxc7 {[%emt 0:05:22]} 22. Rxc7 {[%emt 0:00:05]} Rd6 {[%emt 0:01:13]} 23. Rec1 {[%emt 0:01:05]} Bd7 {[%emt 0:01:00]} 24. f3 {[%emt 0:01:59]} h5 {[%emt 0:01:44]} 25. Kf2 {[%emt 0:00:26]} g6 {[%emt 0:01:04]} 26. R1c5 {[%emt 0:00:31]} f5 {[%emt 0:03:12]} 27. Ke2 {[%emt 0:06:23]} fxe4 {[%emt 0:02:25]} 28. fxe4 {[%emt 0:00:03]} Rf8 {[%emt 0:00:45]} 29. g3 {[%emt 0:01:58]} h4 {[%emt 0:03:35]} 30. b4 {[%emt 0:01:41]} Rf7 {[%emt 0:01:10]} 31. Rc1 {[%emt 0:09:25]} hxg3 {[%emt 0:00:27]} 32. hxg3 {[%emt 0:00:06]} Rh7 {[%emt 0:00:17]} 33. R7c2 {[%emt 0:02:23]} Rh2+ {[%emt 0:01:02]} 34. Kd3 {[%emt 0:00:07]} Rh3 {[%emt 0:00:27]} 35. Rg2 {[%emt 0:00:31]} Rf6 {[%emt 0:00:26]} 36. Ke2 {[%emt 0:02:30]} Rh7 {[%emt 0:01:25]} 37. Rf2 {[%emt 0:00:54]} Rd6 {[%emt 0:01:06]} 38. Rcf1 {[%emt 0:00:38]} Rh3 {[%emt 0:01:14]} 39. Rf8+ {[%emt 0:00:15]} Kg7 {[%emt 0:00:42]} 40. R1f7+ {[%emt 0:00:00]} Kh6 {[%emt 0:00:00]} 41. Rh8+ {[%emt 0:03:51]} Kg5 {[%emt 0:00:33]} 42. Rxd7 {[%emt 0:00:48]} Rxh8 {[%emt 0:01:21]} 43. Rxd6 {[%emt 0:00:04]} Rh2+ {[%emt 0:00:16]} 44. Kf3 {[%emt 0:03:37]} Rxa2 {[%emt 0:01:32]} 45. Re6 {[%emt 0:04:36]} 1-0

[Event "EYCC Girls-U18 2019"]
[Site "Bratislava"]
[Date "2019.08.03"]
[Round "2.17"]
[White "Nazarova, Anastasia"]
[Black "Petrova, Vita"]
[Result "1-0"]
[ECO "B78"]
[WhiteElo "2149"]
[BlackElo "1443"]
[Annotator "NA"]
[PlyCount "55"]
[EventDate "2019.08.02"]
[EventType "swiss"]
[EventCountry "SVK"]
[SourceTitle "playchess.com"]
[Source "ChessBase"]
[SourceQuality "1"]
[TimeControl "40/5400+30:1800+30"]

1. e4 {[%emt 0:00:00]} c5 {[%emt 0:00:00]} 2. Nf3 {[%emt 0:00:00]} d6 {[%emt 0:00:02]} 3. d4 {[%emt 0:00:00]} cxd4 {[%emt 0:00:10]} 4. Nxd4 {[%emt 0:00:00]} Nf6 {[%emt 0:00:19]} 5. Nc3 {[%emt 0:00:00]} g6 {[%emt 0:00:25]} 6. Be3 {[%emt 0:00:02]} Bg7 {[%emt 0:00:26]} 7. f3 {[%emt 0:00:07]} O-O {[%emt 0:00:26]} 8. Bc4 {[%emt 0:00:13]} Nc6 {[%emt 0:00:28]} 9. Qd2 {[%emt 0:00:09]} Bd7 {[%emt 0:00:22]} 10. O-O-O {[%emt 0:00:15]} Rc8 {[%emt 0:00:39]} 11. Bb3 {[%emt 0:00:37]} Nxd4 {[%emt 0:00:28]} 12. Bxd4 {[%emt 0:00:11]} b5 {[%emt 0:00:24]} 13. g4 {[%emt 0:04:16]} a5 {[%emt 0:02:48]} 14. a3 {[%emt 0:15:48]} b4 {[%emt 0:07:25]} 15. axb4 {[%emt 0:00:31]} axb4 {[%emt 0:04:02]} 16. Nd5 {[%emt 0:00:04]} Nxd5 {[%emt 0:00:28]} 17. Bxg7 {[%emt 0:01:11]} Kxg7 {[%emt 0:00:16]} 18. exd5 {[%emt 0:00:32]} Qc7 {[%emt 0:05:03]} 19. Qd4+ {[%emt 0:06:54]} Kg8 {[%emt 0:00:13]} 20. h4 {[%emt 0:01:54]} Ra8 {[%emt 0:03:54]} 21. h5 {[%emt 0:17:56]} Ba4 {[%emt 0:06:04]} 22. Bc4 {[%emt 0:22:16]} Rac8 {[%emt 0:07:25]} 23. b3 {[%emt 0:03:03]} Bb5 {[%emt 0:03:39]} 24. hxg6 {[%emt 0:01:37]} fxg6 {[%emt 0:00:20]} 25. Rxh7 {[%emt 0:00:54]} e5 {[%emt 0:05:54]} 26. Rxc7 {[%emt 0:00:27]} exd4 {[%emt 0:00:24]} 27. Rxc8 {[%emt 0:00:04]} Rxc8 {[%emt 0:00:45]} 28. Bxb5 1-0

[Event "EYCC Girls-U18 2019"]
[Site "Bratislava"]
[Date "2019.08.03"]
[Round "2.18"]
[White "Karatiken, Seray"]
[Black "Kucharska, Honorata"]
[Result "0-1"]
[ECO "E67"]
[WhiteElo "1764"]
[BlackElo "2054"]
[Annotator "NA"]
[PlyCount "76"]
[EventDate "2019.08.02"]
[EventType "swiss"]
[EventCountry "SVK"]
[SourceTitle "playchess.com"]
[Source "ChessBase"]
[SourceQuality "1"]
[TimeControl "40/5400+30:1800+30"]

1. d4 {[%emt 0:00:00]} Nf6 {[%emt 0:00:00]} 2. c4 {[%emt 0:00:00]} g6 {[%emt 0:00:00]} 3. Nc3 {[%emt 0:00:12]} Bg7 {[%emt 0:00:18]} 4. Nf3 {[%emt 0:00:18]} O-O {[%emt 0:00:14]} 5. g3 {[%emt 0:01:03]} d6 {[%emt 0:01:17]} 6. Bg2 {[%emt 0:00:41]} Nbd7 {[%emt 0:01:07]} 7. O-O {[%emt 0:00:29]} e5 {[%emt 0:01:30]} 8. h3 {[%emt 0:01:56]} c6 {[%emt 0:01:33]} 9. e4 {[%emt 0:00:56]} Qc7 {[%emt 0:02:20]} 10. Be3 {[%emt 0:03:12]} Re8 {[%emt 0:02:43]} 11. Qc2 {[%emt 0:02:03]} a6 {[%emt 0:02:47]} 12. a4 {[%emt 0:01:12]} Rb8 {[%emt 0:02:44]} 13. a5 {[%emt 0:37:19]} exd4 {[%emt 0:04:32]} 14. Nxd4 {[%emt 0:00:48]} Ne5 {[%emt 0:00:35]} 15. Nce2 {[%emt 0:06:28]} c5 {[%emt 0:01:42]} 16. Nb3 {[%emt 0:03:10]} b5 {[%emt 0:01:51]} 17. cxb5 {[%emt 0:05:06]} Rxb5 {[%emt 0:03:01]} 18. f4 {[%emt 0:18:24]} Nc6 {[%emt 0:01:49]} 19. Nc3 {[%emt 0:02:39]} Rb8 {[%emt 0:01:51]} 20. Rfd1 {[%emt 0:11:34]} Be6 {[%emt 0:03:03]} 21. Nd2 {[%emt 0:02:19]} Nb4 {[%emt 0:02:30]} 22. Qb1 {[%emt 0:00:28]} d5 {[%emt 0:05:11]} 23. Bf2 {[%emt 0:00:31]} d4 {[%emt 0:01:41]} 24. Nd5 {[%emt 0:00:32]} Nfxd5 {[%emt 0:00:53]} 25. exd5 {[%emt 0:00:05]} Bxd5 {[%emt 0:00:14]} 26. Bxd5 Nxd5 {[%emt 0:00:13]} 27. Re1 {[%emt 0:01:26]} Ne3 {[%emt 0:02:11]} 28. Bxe3 {[%emt 0:00:10]} dxe3 {[%emt 0:00:07]} 29. Nc4 {[%emt 0:00:04]} Bd4 {[%emt 0:01:44]} 30. Re2 {[%emt 0:01:05]} Qc6 {[%emt 0:04:43]} 31. Qf1 {[%emt 0:00:26]} Rb4 {[%emt 0:01:02]} 32. Rc1 {[%emt 0:00:34]} Qe6 {[%emt 0:00:30]} 33. Nb6 {[%emt 0:00:29]} Rxb2 {[%emt 0:00:31]} 34. Kh2 {[%emt 0:00:43]} Rb5 {[%emt 0:01:24]} 35. Nc4 {[%emt 0:00:23]} Rb4 {[%emt 0:01:38]} 36. Ne5 {[%emt 0:00:37]} Bxe5 {[%emt 0:00:37]} 37. Rxe3 {[%emt 0:00:27]} Rb2+ {[%emt 0:00:14]} 38. Kh1 {[%emt 0:00:05]} Qc6+ {[%emt 0:00:08]} 0-1

[Event "EYCC Girls-U18 2019"]
[Site "Bratislava"]
[Date "2019.08.03"]
[Round "2.19"]
[White "Cabanova, Kristina"]
[Black "Koubova, Anna Marie"]
[Result "0-1"]
[ECO "A05"]
[WhiteElo "1728"]
[BlackElo "2094"]
[Annotator "NA"]
[PlyCount "74"]
[EventDate "2019.08.02"]
[EventType "swiss"]
[EventCountry "SVK"]
[SourceTitle "playchess.com"]
[Source "ChessBase"]
[SourceQuality "1"]
[TimeControl "40/5400+30:1800+30"]

1. Nf3 {[%emt 0:00:00]} Nf6 {[%emt 0:00:00]} 2. g3 {[%emt 0:00:00]} g6 {[%emt 0:00:00]} 3. b3 {[%emt 0:00:39]} Bg7 {[%emt 0:00:08]} 4. Bb2 {[%emt 0:00:08]} d5 {[%emt 0:01:29]} 5. Bg2 {[%emt 0:01:14]} c5 {[%emt 0:01:01]} 6. d4 {[%emt 0:01:35]} O-O {[%emt 0:00:45]} 7. O-O {[%emt 0:00:42]} Nc6 {[%emt 0:01:50]} 8. e3 {[%emt 0:02:56]} Re8 {[%emt 0:07:45]} 9. Qc1 {[%emt 0:07:28]} Bf5 {[%emt 0:16:37]} 10. c4 {[%emt 0:08:01]} cxd4 {[%emt 0:06:35]} 11. Nxd4 {[%emt 0:01:56]} Nxd4 {[%emt 0:00:20]} 12. Bxd4 {[%emt 0:01:50]} e5 {[%emt 0:06:15]} 13. Bb2 {[%emt 0:03:32]} dxc4 {[%emt 0:00:22]} 14. Rd1 {[%emt 0:03:05]} Qc8 {[%emt 0:04:51]} 15. Qxc4 {[%emt 0:02:10]} Qxc4 {[%emt 0:00:31]} 16. bxc4 {[%emt 0:00:07]} Be4 {[%emt 0:03:04]} 17. Bxe4 {[%emt 0:04:10]} Nxe4 {[%emt 0:00:09]} 18. Nd2 {[%emt 0:01:04]} Nc5 {[%emt 0:05:46]} 19. Rab1 {[%emt 0:03:43]} b6 {[%emt 0:06:37]} 20. Nf3 {[%emt 0:08:33]} e4 {[%emt 0:08:23]} 21. Nd2 {[%emt 0:08:46]} Rac8 {[%emt 0:03:09]} 22. Bxg7 {[%emt 0:03:10]} Kxg7 {[%emt 0:00:07]} 23. Kf1 {[%emt 0:00:44]} f5 {[%emt 0:02:50]} 24. Ke2 {[%emt 0:03:46]} Red8 {[%emt 0:02:07]} 25. Nb3 {[%emt 0:04:08]} Nd3 {[%emt 0:00:26]} 26. Nd4 {[%emt 0:01:30]} Rd7 {[%emt 0:05:37]} 27. Rxd3 {[%emt 0:01:25]} exd3+ {[%emt 0:00:06]} 28. Kxd3 {[%emt 0:00:06]} Kf6 {[%emt 0:03:30]} 29. Rc1 {[%emt 0:04:17]} Rc5 {[%emt 0:02:19]} 30. Kc3 {[%emt 0:00:56]} Rdc7 {[%emt 0:01:01]} 31. Kb3 {[%emt 0:00:33]} b5 {[%emt 0:01:19]} 32. Kb4 {[%emt 0:03:42]} a6 {[%emt 0:00:56]} 33. Rc3 {[%emt 0:03:58]} Rxc4+ {[%emt 0:01:30]} 34. Rxc4 {[%emt 0:00:12]} Rxc4+ {[%emt 0:00:04]} 35. Kb3 {[%emt 0:00:14]} Rc1 {[%emt 0:02:51]} 36. h4 {[%emt 0:02:32]} Rf1 {[%emt 0:00:47]} 37. f3 {[%emt 0:00:08]} Rg1 {[%emt 0:00:44]} 0-1

[Event "EYCC Girls-U18 2019"]
[Site "Bratislava"]
[Date "2019.08.03"]
[Round "2.20"]
[White "Represa Perez, Mireya"]
[Black "Kostecka, Marika"]
[Result "1/2-1/2"]
[ECO "B53"]
[WhiteElo "2017"]
[BlackElo "1924"]
[Annotator "NA"]
[PlyCount "102"]
[EventDate "2019.08.02"]
[EventType "swiss"]
[EventCountry "SVK"]
[SourceTitle "playchess.com"]
[Source "ChessBase"]
[SourceQuality "1"]
[TimeControl "40/5400+30:1800+30"]

1. e4 {[%emt 0:00:00]} c5 {[%emt 0:00:00]} 2. Nf3 {[%emt 0:00:00]} d6 {[%emt 0:00:00]} 3. d4 {[%emt 0:00:00]} cxd4 {[%emt 0:00:00]} 4. Qxd4 {[%emt 0:00:00]} Nc6 {[%emt 0:00:09]} 5. Bb5 {[%emt 0:00:00]} Bd7 {[%emt 0:00:21]} 6. Bxc6 {[%emt 0:00:02]} Bxc6 {[%emt 0:00:06]} 7. c4 {[%emt 0:00:46]} f5 {[%emt 0:00:07]} 8. exf5 {[%emt 0:00:18]} Bxf3 {[%emt 0:00:39]} 9. gxf3 {[%emt 0:00:07]} Qa5+ {[%emt 0:00:09]} 10. Nc3 {[%emt 0:01:01]} Qxf5 {[%emt 0:00:10]} 11. Ke2 {[%emt 0:00:41]} Nf6 {[%emt 0:02:01]} 12. Ne4 {[%emt 0:00:47]} Nd7 {[%emt 0:11:13]} 13. Ng3 {[%emt 0:08:34]} Qf7 {[%emt 0:01:24]} 14. Qd5 {[%emt 0:09:27]} Qxd5 {[%emt 0:06:11]} 15. cxd5 {[%emt 0:00:06]} g6 {[%emt 0:01:22]} 16. Be3 {[%emt 0:02:39]} Nb6 {[%emt 0:04:44]} 17. Rhd1 {[%emt 0:04:16]} Bg7 {[%emt 0:00:24]} 18. Rac1 {[%emt 0:02:14]} Kd7 {[%emt 0:10:13]} 19. b3 {[%emt 0:02:09]} Rac8 {[%emt 0:02:46]} 20. Bxb6 {[%emt 0:08:01]} axb6 {[%emt 0:00:07]} 21. a4 {[%emt 0:00:14]} Bh6 {[%emt 0:05:10]} 22. Rxc8 {[%emt 0:00:45]} Rxc8 {[%emt 0:00:09]} 23. Ne4 {[%emt 0:00:27]} Rf8 {[%emt 0:08:39]} 24. Rd4 {[%emt 0:12:40]} Rf5 {[%emt 0:16:53]} 25. Ng3 {[%emt 0:03:59]} Rf4 {[%emt 0:01:17]} 26. Rxf4 {[%emt 0:01:38]} Bxf4 {[%emt 0:00:06]} 27. Kd3 {[%emt 0:01:41]} e6 {[%emt 0:00:54]} 28. Kc4 {[%emt 0:01:29]} Be5 {[%emt 0:02:10]} 29. h3 {[%emt 0:00:46]} Ke7 {[%emt 0:05:03]} 30. Ne4 {[%emt 0:04:04]} h5 {[%emt 0:02:23]} 31. Ng5 {[%emt 0:02:34]} exd5+ {[%emt 0:02:47]} 32. Kxd5 {[%emt 0:01:43]} Kf6 {[%emt 0:05:26]} 33. Ne4+ {[%emt 0:15:17]} Ke7 {[%emt 0:00:38]} 34. Nd2 {[%emt 0:00:47]} Kf6 {[%emt 0:05:56]} 35. Nc4 {[%emt 0:01:27]} Kg5 {[%emt 0:01:33]} 36. Nxd6 {[%emt 0:15:50]} Bxd6 {[%emt 0:02:53]} 37. Kxd6 {[%emt 0:00:02]} Kh4 {[%emt 0:01:03]} 38. Kc7 {[%emt 0:00:25]} Kxh3 {[%emt 0:00:16]} 39. Kxb7 {[%emt 0:00:43]} Kg2 {[%emt 0:00:11]} 40. Kxb6 {[%emt 0:00:00]} h4 {[%emt 0:00:00]} 41. a5 {[%emt 0:00:19]} h3 {[%emt 0:00:20]} 42. a6 {[%emt 0:00:03]} h2 {[%emt 0:00:07]} 43. a7 {[%emt 0:00:06]} h1=Q {[%emt 0:00:11]} 44. a8=Q {[%emt 0:00:04]} Kxf2 {[%emt 0:00:56]} 45. b4 {[%emt 0:04:01]} Qxf3 {[%emt 0:00:51]} 46. Qxf3+ {[%emt 0:01:19]} Kxf3 {[%emt 0:00:06]} 47. Kc6 {[%emt 0:00:44]} g5 {[%emt 0:00:17]} 48. b5 {[%emt 0:00:09]} g4 {[%emt 0:00:05]} 49. b6 {[%emt 0:00:04]} g3 {[%emt 0:00:03]} 50. b7 {[%emt 0:00:11]} g2 {[%emt 0:00:09]} 51. b8=Q {[%emt 0:00:05]} g1=Q {[%emt 0:00:07]} 1/2-1/2